[Event "NJSK 2018 Jeugd C"]
[Site "Assen, Netherlands"]
[Date "2018.04.30"]
[Round "2.10"]
[White "Tiggelman, Vincent"]
[Black "Bleeker, Kasper"]
[Result "0-1"]
[TimeControl "40/90m+30sec/move"]
[WhiteElo "1394"]
[BlackElo "1737"]

1. e4 {[%clk 01:30:58]} {[%emt 00:00:02]} e5 {[%clk 01:30:58]} {[%emt
00:00:03]} 2. Nc3 {[%clk 01:31:21]} {[%emt 00:00:06]} Nc6 {[%emt 00:00:25]} 3.
Bc4 {[%clk 01:31:46]} {[%emt 00:00:04]} Nf6 {[%clk 01:31:27]} {[%emt 00:00:07]}
4. d3 {[%clk 01:32:02]} {[%emt 00:00:13]} d6 {[%clk 01:31:16]} {[%emt
00:00:41]} 5. f4 {[%clk 01:31:55]} {[%emt 00:00:37]} Bg4 {[%clk 01:31:08]}
{[%emt 00:00:39]} 6. Nf3 {[%clk 01:32:17]} {[%emt 00:00:08]} Nd4 {[%clk
01:31:17]} {[%emt 00:00:20]} 7. O-O {[%clk 01:31:54]} {[%emt 00:00:53]} Be7
{[%clk 01:31:24]} {[%emt 00:00:23]} 8. h3 {[%clk 01:32:07]} {[%emt 00:00:18]}
Nxf3+ {[%clk 01:31:39]} {[%emt 00:00:15]} 9. Rxf3 {[%clk 01:31:43]} {[%emt
00:00:54]} Bxf3 {[%clk 01:32:03]} {[%emt 00:00:06]} 10. Qxf3 {[%clk 01:32:07]}
{[%emt 00:00:06]} Qd7 {[%clk 01:31:22]} {[%emt 00:01:11]} 11. Be3 {[%clk
01:25:58]} {[%emt 00:06:38]} O-O {[%clk 01:30:36]} {[%emt 00:01:16]} 12. f5
{[%clk 01:25:24]} {[%emt 00:01:05]} c6 {[%clk 01:29:53]} {[%emt 00:01:13]} 13.
Qg3 {[%clk 01:24:31]} {[%emt 00:01:22]} d5 {[%clk 01:29:16]} {[%emt 00:01:08]}
14. exd5 {[%clk 01:18:23]} {[%emt 00:06:38]} cxd5 {[%clk 01:28:37]} {[%emt
00:01:10]} 15. Nxd5 {[%clk 00:57:38]} {[%emt 00:21:14]} Nxd5 {[%clk 01:28:25]}
{[%emt 00:00:42]} 16. Bxd5 {[%clk 00:56:42]} {[%emt 00:01:26]} Qxd5 {[%clk
01:27:48]} {[%emt 00:01:07]} 17. Bh6 {[%clk 00:57:00]} {[%emt 00:00:11]} Qd4+
{[%clk 01:27:22]} {[%emt 00:00:57]} 18. Kh1 {[%clk 00:57:00]} {[%emt 00:00:29]}
Bf6 {[%clk 01:26:31]} {[%emt 00:01:22]} 19. Bxg7 {[%clk 00:54:32]} {[%emt
00:02:58]} Bh4 {[%clk 01:25:59]} {[%emt 00:01:01]} 20. Bxe5+ {[%clk 00:52:45]}
{[%emt 00:02:17]} Bxg3 {[%clk 01:26:19]} {[%emt 00:00:11]} 21. Bxd4 {[%clk
00:53:05]} {[%emt 00:00:10]} Rfe8 {[%clk 01:26:28]} {[%emt 00:00:21]} 22. a3
{[%clk 00:50:43]} {[%emt 00:02:52]} Re2 {[%clk 01:26:50]} {[%emt 00:00:07]} 23.
c4 {[%clk 00:49:47]} {[%emt 00:01:26]} Rae8 {[%clk 01:27:15]} {[%emt 00:00:06]}
24. Bc3 {[%clk 00:50:05]} {[%emt 00:00:12]} Rc2 {[%clk 01:27:36]} {[%emt
00:00:08]} 25. f6 {[%clk 00:49:11]} {[%emt 00:01:24]} Ree2 {[%clk 01:27:55]}
{[%emt 00:00:12]} 26. Rf1 {[%clk 00:49:19]} {[%emt 00:00:21]} Rxg2 {[%clk
01:27:52]} {[%emt 00:00:33]} 27. Rf5 {[%clk 00:48:01]} {[%emt 00:01:47]} Rh2
{[%clk 01:28:19]} {[%emt 00:00:05]} 28. Kg1 {[%clk 00:48:20]} {[%emt 00:00:10]}
Rc1+ {[%clk 01:28:47]} {[%emt 00:00:02]} 29. Rf1 {[%clk 00:48:41]} {[%emt
00:00:09]} Rxf1+ {[%clk 01:29:15]} {[%emt 00:00:02]} 0-1

[Event "NJSK 2018 Jeugd C"]
[Site "Assen, Netherlands"]
[Date "2018.04.30"]
[Round "2.11"]
[White "Yeh, Timo"]
[Black "Torensma, Christian"]
[Result "1-0"]
[TimeControl "40/90m+30sec/move"]
[WhiteElo "1729"]
[BlackElo "1455"]

1. c4 {[%clk 01:30:56]} {[%emt 00:00:04]} f5 {[%clk 01:30:56]} {[%emt
00:00:05]} 2. d4 {[%clk 01:31:16]} {[%emt 00:00:09]} e6 {[%clk 01:31:20]}
{[%emt 00:00:06]} 3. Nf3 {[%clk 01:31:40]} {[%emt 00:00:06]} Nf6 {[%clk
01:31:46]} {[%emt 00:00:05]} 4. Nc3 {[%clk 01:32:03]} {[%emt 00:00:07]} b6
{[%clk 01:32:02]} {[%emt 00:00:13]} 5. Bf4 {[%clk 01:32:06]} {[%emt 00:00:27]}
Bb4 {[%clk 01:32:03]} {[%emt 00:00:29]} 6. e3 {[%clk 01:32:00]} {[%emt
00:00:35]} Bb7 {[%clk 01:31:42]} {[%emt 00:00:52]} 7. Be2 {[%clk 01:32:16]}
{[%emt 00:00:14]} Ne4 {[%clk 01:30:07]} {[%emt 00:02:05]} 8. Qb3 {[%clk
01:31:17]} {[%emt 00:01:28]} a5 {[%clk 01:26:38]} {[%emt 00:03:59]} 9. O-O
{[%clk 01:29:13]} {[%emt 00:02:33]} Bxc3 {[%clk 01:24:43]} {[%emt 00:02:26]} 10.
bxc3 {[%clk 01:29:26]} {[%emt 00:00:17]} d6 {[%clk 01:22:59]} {[%emt 00:02:14]}
11. c5 {[%clk 01:28:10]} {[%emt 00:01:46]} Bd5 {[%clk 01:11:42]} {[%emt
00:11:47]} 12. c4 {[%clk 01:26:20]} {[%emt 00:02:20]} a4 {[%clk 01:07:12]}
{[%emt 00:04:59]} 13. Qb2 {[%clk 01:20:36]} {[%emt 00:06:14]} a3 {[%clk
01:03:20]} {[%emt 00:04:23]} 14. Qb3 {[%clk 01:17:18]} {[%emt 00:03:47]} Bc6
{[%clk 01:01:47]} {[%emt 00:02:03]} 15. cxb6 {[%clk 01:14:07]} {[%emt
00:03:42]} cxb6 {[%clk 01:00:38]} {[%emt 00:01:39]} 16. c5 {[%clk 01:12:48]}
{[%emt 00:01:49]} d5 {[%clk 00:55:20]} {[%emt 00:05:47]} 17. cxb6 {[%clk
01:11:39]} {[%emt 00:01:40]} g5 {[%clk 00:54:35]} {[%emt 00:01:16]} 18. Bc7
{[%clk 01:11:36]} {[%emt 00:00:32]} Qc8 {[%clk 00:51:56]} {[%emt 00:03:09]} 19.
Rfc1 {[%clk 01:11:15]} {[%emt 00:00:43]} Qb7 {[%clk 00:49:12]} {[%emt
00:03:21]} 20. Ne5 {[%clk 01:09:21]} {[%emt 00:02:24]} O-O {[%clk 00:46:31]}
{[%emt 00:03:11]} 21. Bb5 {[%clk 01:03:19]} {[%emt 00:06:32]} Bxb5 {[%clk
00:45:19]} {[%emt 00:01:43]} 22. Qxb5 {[%emt 00:00:31]} 1-0

[Event "NJSK 2018 Jeugd C"]
[Site "Assen, Netherlands"]
[Date "2018.04.30"]
[Round "2.12"]
[White "Franke, Daniel"]
[Black "Brandsma, Romayn"]
[Result "0-1"]
[TimeControl "40/90m+30sec/move"]
[WhiteElo "1298"]
[BlackElo "1715"]

1. d4 {[%clk 01:30:59]} Nf6 {[%clk 01:30:54]} {[%emt 00:00:06]} 2. c4 {[%clk
01:31:25]} {[%emt 00:00:05]} e6 {[%clk 01:31:18]} {[%emt 00:00:05]} 3. Nf3
{[%clk 01:31:45]} {[%emt 00:00:10]} b6 {[%clk 01:31:40]} {[%emt 00:00:07]} 4.
Nc3 {[%clk 01:32:01]} {[%emt 00:00:14]} Bb4 {[%clk 01:31:46]} {[%emt 00:00:24]}
5. a3 {[%clk 01:31:58]} {[%emt 00:00:34]} Bxc3+ {[%clk 01:32:06]} {[%emt
00:00:09]} 6. bxc3 {[%clk 01:32:14]} {[%emt 00:00:15]} Bb7 {[%clk 01:32:10]}
{[%emt 00:00:26]} 7. e3 {[%clk 01:32:35]} {[%emt 00:00:09]} O-O {[%clk
01:31:55]} {[%emt 00:00:44]} 8. Bd3 {[%clk 01:32:52]} {[%emt 00:00:13]} d6
{[%clk 01:31:30]} {[%emt 00:00:55]} 9. O-O {[%clk 01:33:05]} {[%emt 00:00:17]}
Nbd7 {[%clk 01:31:16]} {[%emt 00:00:45]} 10. Bb2 {[%clk 01:31:55]} {[%emt
00:01:40]} c5 {[%clk 01:30:11]} {[%emt 00:01:35]} 11. Re1 {[%clk 01:31:16]}
{[%emt 00:01:09]} Rc8 {[%clk 01:27:56]} {[%emt 00:02:45]} 12. e4 {[%clk
01:29:18]} {[%emt 00:02:28]} Re8 {[%clk 01:26:39]} {[%emt 00:01:47]} 13. Rc1
{[%clk 01:28:06]} {[%emt 00:01:42]} Qc7 {[%clk 01:25:20]} {[%emt 00:01:49]} 14.
Nd2 {[%clk 01:18:39]} {[%emt 00:09:57]} e5 {[%clk 01:23:10]} {[%emt 00:02:40]}
15. d5 {[%clk 01:18:11]} {[%emt 00:00:59]} Nf8 {[%clk 01:22:19]} {[%emt
00:01:20]} 16. Nf1 {[%clk 01:16:55]} {[%emt 00:01:47]} Ng6 {[%clk 01:21:28]}
{[%emt 00:01:20]} 17. g3 {[%clk 01:03:44]} {[%emt 00:13:40]} Rb8 {[%clk
01:20:29]} {[%emt 00:01:30]} 18. Rb1 {[%clk 00:59:37]} {[%emt 00:04:38]} Bc8
{[%clk 01:19:29]} {[%emt 00:01:29]} 19. Bc1 {[%clk 00:55:48]} {[%emt 00:04:20]}
h6 {[%clk 01:18:45]} {[%emt 00:01:13]} 20. Ne3 {[%clk 00:55:13]} {[%emt
00:01:05]} Ne7 {[%clk 01:16:51]} {[%emt 00:02:24]} 21. Qc2 {[%clk 00:44:42]}
{[%emt 00:11:01]} a6 {[%clk 01:11:09]} {[%emt 00:06:12]} 22. Be2 {[%clk
00:42:15]} {[%emt 00:02:56]} Bd7 {[%clk 01:08:41]} {[%emt 00:02:58]} 23. Bd2
{[%clk 00:26:36]} {[%emt 00:16:10]} b5 {[%clk 01:07:30]} {[%emt 00:01:42]} 24.
Bd3 {[%clk 00:25:25]} {[%emt 00:01:41]} Rb7 {[%clk 01:00:19]} {[%emt 00:07:40]}
25. Rb2 {[%clk 00:22:24]} {[%emt 00:03:31]} Reb8 {[%clk 00:57:48]} {[%emt
00:03:00]} 26. Reb1 {[%clk 00:21:34]} {[%emt 00:01:20]} bxc4 {[%clk 00:57:30]}
{[%emt 00:00:49]} 27. Nxc4 {[%clk 00:17:50]} {[%emt 00:04:14]} Rxb2 {[%clk
00:57:05]} {[%emt 00:00:55]} 28. Rxb2 {[%clk 00:18:01]} {[%emt 00:00:19]} Rxb2
{[%clk 00:57:25]} {[%emt 00:00:09]} 29. Qxb2 {[%clk 00:18:15]} {[%emt
00:00:17]} Bb5 {[%clk 00:57:27]} {[%emt 00:00:28]} 30. Qb1 {[%clk 00:13:21]}
{[%emt 00:05:25]} Nxe4 {[%clk 00:57:10]} {[%emt 00:00:46]} 31. Bxe4 {[%clk
00:12:23]} {[%emt 00:01:29]} Bxc4 {[%clk 00:57:32]} {[%emt 00:00:07]} 32. Bd3
{[%clk 00:12:37]} {[%emt 00:00:15]} Bxd3 {[%clk 00:56:56]} {[%emt 00:01:06]} 33.
Qxd3 {[%clk 00:13:04]} {[%emt 00:00:04]} c4 {[%clk 00:57:03]} {[%emt 00:00:23]}
34. Qf3 {[%clk 00:11:06]} {[%emt 00:02:27]} Qc5 {[%clk 00:56:09]} {[%emt
00:01:24]} 35. Qg4 {[%clk 00:09:22]} {[%emt 00:02:15]} Kh8 {[%clk 00:53:00]}
{[%emt 00:03:38]} 36. Qd7 {[%clk 00:08:08]} {[%emt 00:01:46]} Qxd5 {[%clk
00:46:37]} {[%emt 00:06:52]} 37. Bxh6 {[%clk 00:08:20]} {[%emt 00:00:18]} gxh6
{[%clk 00:46:53]} {[%emt 00:00:14]} 38. Qxe7 {[%clk 00:08:36]} {[%emt
00:00:14]} Kg7 {[%clk 00:47:01]} {[%emt 00:00:20]} 39. Qh4 {[%clk 00:08:30]}
{[%emt 00:00:39]} Qd1+ {[%clk 00:46:53]} {[%emt 00:00:36]} 40. Kg2 {[%clk
00:08:49]} {[%emt 00:00:12]} d5 {[%clk 00:46:18]} {[%emt 00:01:04]} 41. f3
{[%clk 00:07:20]} {[%emt 00:01:59]} Qe2+ {[%clk 00:46:19]} {[%emt 00:00:28]} 42.
Kh3 {[%clk 00:05:53]} {[%emt 00:01:59]} Qxf3 {[%clk 00:46:27]} {[%emt
00:00:21]} 43. Qd8 {[%clk 00:04:41]} {[%emt 00:01:43]} Qf1 {[%clk 00:45:57]}
{[%emt 00:00:59]} 44. Kg4 {[%clk 00:04:38]} {[%emt 00:00:34]} Qd1+ {[%clk
00:42:35]} {[%emt 00:03:52]} 45. Kh4 {[%clk 00:04:57]} {[%emt 00:00:11]} Qf3
{[%clk 00:39:57]} {[%emt 00:03:07]} 46. Qc8 {[%clk 00:02:32]} {[%emt 00:02:55]}
Qe4 {[%clk 00:40:05]} {[%emt 00:00:23]} 47. Kh3 {[%clk 00:02:49]} {[%emt
00:00:14]} d4 {[%clk 00:40:14]} {[%emt 00:00:20]} 48. Qxc4 {[%clk 00:02:45]}
{[%emt 00:00:34]} Qf5 {[%clk 00:40:32]} {[%emt 00:00:12]} 49. Kh4 {[%clk
00:02:56]} {[%emt 00:00:20]} d3 {[%clk 00:40:17]} {[%emt 00:00:44]} 50. Qd5
{[%clk 00:01:59]} {[%emt 00:01:27]} Kg6 {[%clk 00:38:41]} {[%emt 00:02:05]} 51.
g4 {[%clk 00:01:10]} {[%emt 00:01:20]} Qf2 {[%clk 00:38:30]} {[%emt 00:00:40]}
52. Kh3 {[%clk 00:01:34]} {[%emt 00:00:07]} Qe3 {[%clk 00:38:48]} {[%emt
00:00:09]} 53. Kh4 {[%clk 00:01:28]} {[%emt 00:00:38]} d2 {[%clk 00:38:37]}
{[%emt 00:00:41]} 54. Qh1 {[%clk 00:00:45]} {[%emt 00:01:13]} Qe1 {[%clk
00:38:56]} {[%emt 00:00:11]} 0-1

[Event "NJSK 2018 Jeugd C"]
[Site "Assen, Netherlands"]
[Date "2018.05.01"]
[Round "3.1"]
[White "Kutchoukov, Daniel"]
[Black "Van Foreest, Machteld"]
[Result "1/2-1/2"]
[TimeControl "40/90m+30sec/move"]
[WhiteElo "1902"]
[BlackElo "2132"]

1. e4 {[%clk 01:30:58]} e5 {[%clk 01:30:57]} {[%emt 00:00:04]} 2. Nf3 {[%clk
01:31:25]} {[%emt 00:00:03]} Nc6 {[%clk 01:31:23]} {[%emt 00:00:04]} 3. Nc3
{[%clk 01:31:51]} {[%emt 00:00:03]} Nf6 {[%clk 01:31:49]} {[%emt 00:00:04]} 4.
h3 {[%clk 01:32:18]} {[%emt 00:00:04]} Bc5 {[%clk 01:24:49]} {[%emt 00:07:30]}
5. Nxe5 {[%clk 01:32:40]} {[%emt 00:00:07]} Nxe5 {[%clk 01:25:11]} {[%emt
00:00:08]} 6. d4 {[%clk 01:33:07]} {[%emt 00:00:04]} Bd6 {[%clk 01:25:14]}
{[%emt 00:00:28]} 7. dxe5 {[%clk 01:33:30]} {[%emt 00:00:07]} Bxe5 {[%clk
01:25:39]} {[%emt 00:00:04]} 8. Bd3 {[%clk 01:33:56]} {[%emt 00:00:04]} d5
{[%clk 01:11:32]} {[%emt 00:14:36]} 9. exd5 {[%clk 01:01:08]} {[%emt 00:33:18]}
Nxd5 {[%clk 01:09:56]} {[%emt 00:02:07]} 10. O-O {[%clk 00:59:35]} {[%emt
00:02:03]} Be6 {[%clk 00:59:34]} {[%emt 00:10:52]} 11. Qh5 {[%clk 00:42:12]}
{[%emt 00:17:53]} Qd6 {[%clk 00:30:08]} {[%emt 00:29:56]} 12. Nb5 {[%clk
00:25:22]} {[%emt 00:17:20]} Bh2+ {[%clk 00:30:29]} {[%emt 00:00:08]} 13. Kh1
{[%clk 00:25:51]} {[%emt 00:00:02]} Qe5 {[%clk 00:30:44]} {[%emt 00:00:15]} 14.
Qh4 {[%clk 00:12:30]} {[%emt 00:13:51]} Nf4 {[%clk 00:22:01]} {[%emt 00:09:12]}
15. Bxf4 {[%clk 00:02:29]} {[%emt 00:10:31]} Qxf4 {[%clk 00:21:53]} {[%emt
00:00:39]} 16. Qxf4 {[%clk 00:00:58]} {[%emt 00:02:01]} Bxf4 {[%clk 00:22:20]}
{[%emt 00:00:03]} 17. g3 {[%clk 00:01:04]} {[%emt 00:00:25]} a6 {[%clk
00:20:31]} {[%emt 00:02:20]} 18. Nd4 {[%clk 00:00:34]} {[%emt 00:00:59]} Bd5
{[%clk 00:20:36]} {[%emt 00:00:25]} 19. Kg1 {[%clk 00:01:00]} {[%emt 00:00:04]}
Bg5 {[%clk 00:17:59]} {[%emt 00:03:06]} 20. Rfe1+ {[%clk 00:00:56]} {[%emt
00:00:35]} Kf8 {[%clk 00:15:55]} {[%emt 00:02:34]} 21. c4 {[%clk 00:00:54]}
{[%emt 00:00:32]} Bf6 {[%clk 00:15:55]} {[%emt 00:00:30]} 22. cxd5 {[%clk
00:01:14]} {[%emt 00:00:11]} Bxd4 {[%clk 00:16:15]} {[%emt 00:00:09]} 23. Re2
{[%clk 00:00:45]} {[%emt 00:00:58]} Re8 {[%clk 00:15:17]} {[%emt 00:01:28]} 24.
Rae1 {[%clk 00:00:59]} {[%emt 00:00:16]} Rxe2 {[%clk 00:15:30]} {[%emt
00:00:17]} 1/2-1/2

[Event "NJSK 2018 Jeugd C"]
[Site "Assen, Netherlands"]
[Date "2018.05.01"]
[Round "3.2"]
[White "Elgersma, Onno"]
[Black "Klaren, Duncan"]
[Result "1-0"]
[TimeControl "40/90m+30sec/move"]
[WhiteElo "2060"]
[BlackElo "1713"]

1. e4 {[%clk 01:30:57]} {[%emt 00:00:03]} c5 {[%clk 01:30:55]} {[%emt
00:00:06]} 2. Nf3 {[%clk 01:31:15]} {[%emt 00:00:11]} d6 {[%clk 01:31:21]}
{[%emt 00:00:04]} 3. d4 {[%clk 01:31:41]} {[%emt 00:00:04]} cxd4 {[%clk
01:31:47]} {[%emt 00:00:04]} 4. Nxd4 {[%clk 01:32:05]} {[%emt 00:00:06]} Nf6
{[%clk 01:32:13]} {[%emt 00:00:04]} 5. Nc3 {[%clk 01:32:16]} {[%emt 00:00:19]}
a6 {[%clk 01:32:36]} {[%emt 00:00:07]} 6. h3 {[%clk 01:32:27]} {[%emt
00:00:19]} e5 {[%clk 01:32:53]} {[%emt 00:00:14]} 7. Nde2 {[%clk 01:32:48]}
{[%emt 00:00:08]} h5 {[%clk 01:33:17]} {[%emt 00:00:06]} 8. Bg5 {[%clk
01:31:54]} {[%emt 00:01:24]} Be7 {[%clk 01:33:27]} {[%emt 00:00:20]} 9. g3
{[%clk 01:28:27]} {[%emt 00:03:56]} b5 {[%clk 01:33:26]} {[%emt 00:00:32]} 10.
Bxf6 {[%clk 01:24:11]} {[%emt 00:04:45]} Bxf6 {[%clk 01:33:26]} {[%emt
00:00:30]} 11. Nd5 {[%clk 01:24:15]} {[%emt 00:00:27]} Nd7 {[%clk 01:31:00]}
{[%emt 00:02:56]} 12. Bg2 {[%clk 01:22:37]} {[%emt 00:02:07]} Bb7 {[%clk
01:30:27]} {[%emt 00:01:03]} 13. Nec3 {[%clk 01:16:23]} {[%emt 00:06:44]} Nb6
{[%clk 01:27:58]} {[%emt 00:02:59]} 14. O-O {[%clk 01:02:14]} {[%emt 00:14:39]}
Rc8 {[%clk 01:23:23]} {[%emt 00:05:06]} 15. Qd3 {[%clk 00:52:38]} {[%emt
00:10:05]} Bxd5 {[%clk 01:19:59]} {[%emt 00:03:54]} 16. exd5 {[%clk 00:47:39]}
{[%emt 00:05:29]} g6 {[%clk 01:16:32]} {[%emt 00:03:57]} 17. a4 {[%clk
00:44:03]} {[%emt 00:04:07]} b4 {[%clk 01:13:54]} {[%emt 00:03:08]} 18. Ne4
{[%clk 00:43:38]} {[%emt 00:00:54]} Be7 {[%clk 01:09:37]} {[%emt 00:04:47]} 19.
Qxa6 {[%clk 00:24:41]} {[%emt 00:19:28]} O-O {[%clk 01:08:47]} {[%emt
00:01:20]} 20. a5 {[%clk 00:23:34]} {[%emt 00:01:38]} Nxd5 {[%clk 01:05:20]}
{[%emt 00:03:56]} 21. Nxd6 {[%clk 00:20:34]} {[%emt 00:03:30]} Bxd6 {[%clk
00:50:04]} {[%emt 00:15:45]} 22. Bxd5 {[%clk 00:20:45]} {[%emt 00:00:21]} Kg7
{[%clk 00:47:44]} {[%emt 00:02:49]} 23. Bb7 {[%clk 00:16:54]} {[%emt 00:04:21]}
Rc7 {[%clk 00:43:59]} {[%emt 00:04:16]} 24. Rfd1 {[%clk 00:16:18]} {[%emt
00:01:04]} Qe7 {[%clk 00:43:12]} {[%emt 00:01:18]} 25. Qxd6 {[%clk 00:12:00]}
{[%emt 00:04:48]} Rxb7 {[%clk 00:43:27]} {[%emt 00:00:15]} 26. a6 {[%clk
00:10:49]} {[%emt 00:01:40]} Ra7 {[%clk 00:42:45]} {[%emt 00:01:12]} 27. Ra5
{[%clk 00:07:21]} {[%emt 00:03:58]} Qxd6 {[%clk 00:41:52]} {[%emt 00:01:24]} 28.
Rxd6 {[%clk 00:07:46]} {[%emt 00:00:04]} Rc8 {[%clk 00:42:16]} {[%emt
00:00:06]} 29. Rb6 {[%clk 00:07:57]} {[%emt 00:00:19]} Rca8 {[%clk 00:40:26]}
{[%emt 00:02:19]} 30. Rxb4 {[%clk 00:07:20]} {[%emt 00:01:07]} Rxa6 {[%clk
00:39:54]} {[%emt 00:01:02]} 31. Rxe5 {[%clk 00:07:39]} {[%emt 00:00:11]} Rd8
{[%clk 00:39:18]} {[%emt 00:01:03]} 32. c4 {[%clk 00:06:05]} {[%emt 00:02:07]}
Rd2 {[%clk 00:39:25]} {[%emt 00:00:23]} 33. Kf1 {[%clk 00:03:43]} {[%emt
00:02:52]} Rc2 {[%clk 00:36:49]} {[%emt 00:03:06]} 34. Re2 {[%clk 00:03:11]}
{[%emt 00:01:02]} Ra1+ {[%clk 00:35:51]} {[%emt 00:01:27]} 35. Re1 {[%clk
00:03:40]} {[%emt 00:00:02]} Ra2 {[%clk 00:35:51]} {[%emt 00:00:30]} 36. Rb1
{[%clk 00:03:34]} {[%emt 00:00:36]} Ra6 {[%clk 00:35:57]} {[%emt 00:00:25]} 37.
Kg2 {[%clk 00:03:45]} {[%emt 00:00:18]} Ra2 {[%clk 00:34:27]} {[%emt 00:02:00]}
38. g4 {[%clk 00:03:38]} {[%emt 00:00:37]} hxg4 {[%clk 00:33:51]} {[%emt
00:01:06]} 39. hxg4 {[%clk 00:04:07]} {[%emt 00:00:01]} Ra6 {[%clk 00:33:42]}
{[%emt 00:00:40]} 40. Kg3 {[%clk 00:03:53]} {[%emt 00:00:43]} Rf6 {[%clk
00:33:01]} {[%emt 00:01:11]} 41. f3 {[%clk 00:03:55]} {[%emt 00:00:29]} g5
{[%clk 00:30:17]} {[%emt 00:03:14]} 42. Re1 {[%clk 00:03:45]} {[%emt 00:00:38]}
Rh6 {[%clk 00:29:52]} {[%emt 00:00:56]} 43. f4 {[%clk 00:01:47]} {[%emt
00:02:28]} Rhh2 {[%clk 00:29:39]} {[%emt 00:00:43]} 44. fxg5 {[%clk 00:01:36]}
{[%emt 00:00:41]} Rcf2 {[%clk 00:29:21]} {[%emt 00:00:48]} 45. Rg1 {[%clk
00:01:26]} {[%emt 00:00:40]} Kg6 {[%clk 00:28:30]} {[%emt 00:01:20]} 46. c5
{[%clk 00:01:21]} {[%emt 00:00:36]} Rc2 {[%clk 00:26:21]} {[%emt 00:02:39]} 47.
Rf1 {[%clk 00:00:58]} {[%emt 00:00:53]} Rhd2 {[%clk 00:25:55]} {[%emt
00:00:56]} 48. Rf5 {[%clk 00:00:48]} {[%emt 00:00:40]} Rxb2 {[%clk 00:25:43]}
{[%emt 00:00:42]} 49. Rxb2 {[%clk 00:01:03]} {[%emt 00:00:15]} Rxb2 {[%clk
00:26:08]} {[%emt 00:00:05]} 50. Kf4 {[%clk 00:01:19]} {[%emt 00:00:13]} Rb4+
{[%clk 00:24:16]} {[%emt 00:02:22]} 51. Kg3 {[%clk 00:00:51]} {[%emt 00:00:57]}
Rc4 {[%clk 00:24:23]} {[%emt 00:00:23]} 52. Rd5 {[%clk 00:00:47]} {[%emt
00:00:34]} Kg7 {[%clk 00:19:55]} {[%emt 00:04:58]} 53. Kh4 {[%clk 00:00:47]}
{[%emt 00:00:31]} Rc3 {[%clk 00:20:10]} {[%emt 00:00:15]} 54. Rf5 {[%clk
00:00:48]} {[%emt 00:00:29]} Kg8 {[%clk 00:19:36]} {[%emt 00:01:04]} 55. g6
{[%clk 00:00:46]} {[%emt 00:00:32]} fxg6 {[%clk 00:14:04]} {[%emt 00:06:01]} 56.
Rd5 {[%clk 00:01:15]} {[%emt 00:00:02]} Rc4 {[%clk 00:13:15]} {[%emt 00:01:20]}
57. Kg5 {[%clk 00:01:21]} {[%emt 00:00:23]} Kf7 {[%clk 00:13:06]} {[%emt
00:00:39]} 58. Rd7+ {[%clk 00:01:09]} {[%emt 00:00:42]} Ke8 {[%clk 00:10:33]}
{[%emt 00:03:01]} 59. Rc7 {[%clk 00:00:41]} {[%emt 00:01:00]} Kd8 {[%clk
00:10:47]} {[%emt 00:00:15]} 60. Ra7 {[%clk 00:00:46]} {[%emt 00:00:26]} Ke8
{[%clk 00:10:24]} {[%emt 00:00:53]} 61. Rb7 {[%clk 00:00:43]} {[%emt 00:00:33]}
Kf8 {[%clk 00:07:44]} {[%emt 00:03:10]} 62. Rc7 {[%clk 00:00:49]} {[%emt
00:00:25]} Ke8 {[%clk 00:07:57]} {[%emt 00:00:16]} 63. c6 {[%clk 00:00:58]}
{[%emt 00:00:21]} Kf8 {[%clk 00:05:46]} {[%emt 00:02:42]} 64. Rc8+ {[%clk
00:00:55]} {[%emt 00:00:33]} Kg7 {[%clk 00:04:48]} {[%emt 00:01:28]} 65. Rc7+
{[%clk 00:01:16]} {[%emt 00:00:09]} Kf8 {[%clk 00:05:13]} {[%emt 00:00:04]} 66.
Kxg6 {[%clk 00:01:08]} {[%emt 00:00:39]} Rxg4+ {[%clk 00:05:24]} {[%emt
00:00:19]} 67. Kf6 {[%clk 00:00:55]} {[%emt 00:00:42]} Rf4+ {[%clk 00:03:48]}
{[%emt 00:02:05]} 68. Ke6 {[%clk 00:01:04]} {[%emt 00:00:22]} Re4+ {[%clk
00:02:07]} {[%emt 00:02:12]} 69. Kd7 {[%clk 00:00:59]} {[%emt 00:00:35]} Rd4+
{[%clk 00:01:57]} {[%emt 00:00:40]} 70. Kc8 {[%clk 00:01:19]} {[%emt 00:00:10]}
Rc4 {[%clk 00:01:31]} {[%emt 00:00:55]} 71. Kd7 {[%clk 00:01:01]} {[%emt
00:00:48]} Rc1 {[%clk 00:01:07]} {[%emt 00:00:54]} 72. Ke6 {[%clk 00:01:12]}
{[%emt 00:00:19]} Re1+ {[%clk 00:01:16]} {[%emt 00:00:22]} 73. Kd7 {[%clk
00:00:52]} {[%emt 00:00:49]} Rd1+ {[%clk 00:01:41]} {[%emt 00:00:05]} 74. Kc8
{[%clk 00:01:15]} {[%emt 00:00:07]} Rc1 {[%clk 00:01:50]} {[%emt 00:00:21]} 75.
Kb7 {[%clk 00:01:07]} {[%emt 00:00:38]} Rb1+ {[%clk 00:01:19]} {[%emt
00:01:01]} 76. Ka8 {[%clk 00:01:29]} {[%emt 00:00:08]} Rc1 {[%clk 00:01:15]}
{[%emt 00:00:34]} 77. Rc8 {[%clk 00:01:35]} {[%emt 00:00:24]} Kf7 {[%clk
00:00:57]} {[%emt 00:00:48]} 78. Kb7 {[%clk 00:01:52]} {[%emt 00:00:13]} Rb1+
{[%clk 00:01:22]} {[%emt 00:00:05]} 79. Kc7 {[%clk 00:02:18]} {[%emt 00:00:04]}
Rc1 {[%clk 00:01:34]} {[%emt 00:00:17]} 80. Rb8 {[%clk 00:02:24]} {[%emt
00:00:24]} Rc2 {[%clk 00:01:03]} {[%emt 00:01:01]} 81. Kb7 {[%clk 00:00:52]}
{[%emt 00:02:02]} Rb2+ {[%clk 00:01:02]} {[%emt 00:00:31]} 82. Kc8 {[%clk
00:01:17]} {[%emt 00:00:05]} Rc2 {[%clk 00:01:20]} {[%emt 00:00:12]} 83. c7
{[%clk 00:01:36]} {[%emt 00:00:11]} Ke7 {[%clk 00:01:15]} {[%emt 00:00:34]} 84.
Rb3 {[%clk 00:01:23]} {[%emt 00:00:44]} Kd6 {[%clk 00:00:44]} {[%emt 00:01:01]}
85. Kd8 {[%clk 00:01:40]} {[%emt 00:00:14]} Rg2 {[%clk 00:00:35]} {[%emt
00:00:39]} 86. Rd3+ {[%clk 00:02:00]} {[%emt 00:00:10]} 1-0